Cogmind - Beta 17 @@@ ROGUE MODE // 2026.08.10 @ 03:34:43 Player: 4R-ZE3 Result: Destroyed by S-10 Pest with Light Assault Rifle Performance ------------- Evolutions (0) 0 Regions Visited (1) 200 Robots Destroyed (15) 75 Value Destroyed (266) 266 Prototype IDs (0) 0 Alien Tech Used (0) 0 Bonus (0) 0 TOTAL SCORE: 541 Bonus ------- None Cogmind --------- Core Integrity 0/250 Matter 265/300 Energy 100/100 System Corruption 0% Temperature Cool (7) Movement Treading (160) Location -10/Materials Parts ------- > --- POWER (1) -------- (None) > --- PROPULSION (2) --- Light Treads Light Treads > --- UTILITY (2) ------ Large Storage Unit > --- WEAPON (2) ------- Light Assault Rifle > --- INVENTORY (15) --- Light Treads Wheel Weapon Shielding Small Laser Peak State ------------ > --- POWER ------------ Light Ion Engine > --- PROPULSION ------- Wheel Wheel > --- UTILITY ---------- Small Storage Unit Large Storage Unit > --- WEAPON ----------- Medium Laser Small Laser > --- INVENTORY -------- Light Ion Engine Light Treads Light Treads Assault Rifle Light Assault Rifle [Rating: 7] Favorites ----------- Power Light Ion Engine Engine Light Ion Engine Propulsion Wheel Treads Light Treads Wheel Wheel Utility Large Storage Unit Device Heat Sink Storage Large Storage Unit Weapon Medium Laser Energy Gun Medium Laser Ballistic Gun Light Assault Rifle Build | -11 -10 ------- Run | Yrd Mat Slots Evolved . | . . Power . | . . Propulsion . | . . Utility . | . . Weapon . | . . Parts Attached 14 | 7 7 Power 2 | 1 1 Engine 2 | 1 1 Core . | . . Reactor . | . . Propulsion 4 | 2 2 Treads 2 | . 2 Leg . | . . Wheel 2 | 2 . Hover . | . . Flight . | . . Utility 3 | 1 2 Device 1 | . 1 Storage 2 | 1 1 Processor . | . . Hackware . | . . Protection . | . . Artifact . | . . Weapon 5 | 3 2 Energy Gun 2 | 2 . Energy Cannon . | . . Ballistic Gun 3 | 1 2 Ballistic Cannon . | . . Launcher . | . . Special Weapon . | . . Impact Weapon . | . . Slashing Weapon . | . . Piercing Weapon . | . . Special Melee Weapon . | . . Unidentified Prototypes . | . . Parts Lost 8 | . 8 Power 2 | . 2 Propulsion 2 | . 2 Utility 1 | . 1 Weapon 3 | . 3 Highest Loss Streak 4 | . 4 To Critical Strikes . | . . Average Backups 4 | 1 4 Power . | . . Propulsion 1 | 1 1 Utility . | . . Weapon 1 | . 1 Tool/Special . | . . Unused Backups 2 | . 2 Power . | . . Propulsion 1 | . 1 Utility 1 | . 1 Weapon . | . . Tool/Special . | . . Average Slot Usage (%) 94 | . 94 Engine 12 | . 12 Treads 11 | . 11 Wheel 16 | . 16 Device 6 | . 6 Storage 18 | . 18 Energy Gun 18 | . 18 Ballistic Gun 8 | . 8 Peak Build Rating 7 | 6 7 Average Rating 6 | 4 6 On Entrance 3 | . 6 Avg Prop Armor Cover (%) 13 | . 13 Naked Turns . | . . Heaviest Build 31 | 11 31 Greatest Support 40 | 20 40 Greatest Overweight (x) 2 | . 2 Average Overweight (x) . | . . Largest Inventory Capacity 15 | 8 15 Average Capacity 13 | 7 13 Most Carried 6 | 4 6 Average Carried 4 | 2 4 Final Capacity 15 | 8 15 Final Carried 4 | 4 4 Class Distribution -------------------- 100% | Mutant Dominant Class ---------------- Mutant | -10/Materials Resources | -11 -10 ----------- Run | Yrd Mat Matter Collected 364 | 134 230 Remotely . | . . Salvage Created 400 | . 400 Parts 21 | . 21 Haulers Intercepted 1 | . 1 Recyclers Shooed . | . . Parts Field Recycled . | . . Retrieved Matter . | . . Parts Self-Destructed . | . . Prevented . | . . Parts Restored . | . . Kills | -11 -10 ------- Run | Yrd Mat Combat Hostiles Destroyed 13 | . 13 Guns 13 | . 13 Classes Destroyed 4 | . 4 Worker 1 | . 1 Hauler 1 | . 1 Swarmer 8 | . 8 Grunt 5 | . 5 Best Kill Streak 6 | . 6 Combat Bots Only 6 | . 6 Max Kills in Single Turn 1 | . 1 Gunslinging . | . . Exploded . | . . Melee . | . . Uniques/NPCs Destroyed . | . . Combat | -11 -10 -------- Run | Yrd Mat Hostile Shots Fired 128 | . 128 Missed 34 | . 34 Hits 94 | . 94 Projectile 94 | . 94 Critical Strikes 1 | . 1 Damage Taken 924 | . 924 Core 257 | . 257 Absorbed by Shields . | . . Core Remaining (%) 100 | 100 . Volleys Fired 54 | . 54 Largest 2 | . 2 Hottest 90 | . 90 Shots Fired 94 | . 94 Gun 94 | . 94 Cannon . | . . Launcher . | . . Special . | . . Kinetic 42 | . 42 Thermal 52 | . 52 Explosive . | . . Electromagnetic . | . . Robot Hit Streak 11 | . 11 Robot Miss Streak 4 | . 4 Penetration Max . | . . Secondary Targets 3 | . 3 Max Gunslinging Chain 1 | . 1 Shots Hit Robots 63 | . 63 Core Hits 23 | . 23 Critical Kills . | . . Critical Parts Destroyed . | . . Critical Strikes 5 | . 5 Burn 5 | . 5 Melee Attacks . | . . Impact . | . . Slashing . | . . Piercing . | . . Sneak Attacks . | . . Combat Hostiles . | . . Follow-up Attacks . | . . Damage Inflicted 788 | . 788 Guns 788 | . 788 Cannons . | . . Explosions . | . . Melee . | . . Ramming . | . . Kinetic 301 | . 301 Thermal 487 | . 487 Explosive . | . . Electromagnetic . | . . Impact . | . . Slashing . | . . Piercing . | . . Highest Corruption . | . . Average Corruption . | . . Corruption Purged . | . . Corruption Blocked . | . . Overload Shots . | . . Overflow Damage . | . . Projectiles . | . . Explosions . | . . Melee . | . . Knockbacks . | . . Impact . | . . Kinetic . | . . Secondary . | . . Self-Inflicted Damage . | . . Shots . | . . Rammed . | . . Targets Rammed . | . . Kicked . | . . Crushed . | . . Highest Temperature 328 | . 328 Average Temperature 116 | . 116 Received Heat Transfer 297 | . 297 Effects 3 | . 3 Interference 1 | . 1 Matter Decay 1 | . 1 Damage (minor) 1 | . 1 Siege Activations . | . . Martial Activations . | . . Shielding Activations . | . . Robots Disrupted . | . . Combat Hostiles . | . . Robots Corrupted . | . . Combat Hostiles . | . . Parts Fried . | . . Impact Corruptions . | . . Robots Melted . | . . Combat Hostiles . | . . Parts Melted 4 | . 4 Heat Transferred 1715 | . 1715 Parts Sabotaged . | . . Parts Stolen . | . . Parts Stripped . | . . Power Chain Reactions . | . . Alert | -11 -10 ------- Run | Yrd Mat Maximum Alert Level 1 | . 1 Low Security (%) 98 | 100 98 Level 1 1 | . 1 Level 2 . | . . Level 3 . | . . Level 4 . | . . Level 5 . | . . High Security . | . . Max Security . | . . Peak Influence 202 | . 202 Initial . | . . Average 78 | . 88 Influence Increases 358 | . 358 Destroy 0b10 Robot/C 260 | . 260 Destroy 0b10 Robot/NC 10 | . 10 Destroy Leader 52 | . 52 Successful Hack 6 | . 6 Lose Combat Pursuer 30 | . 30 Influence Decreases 196 | . 196 Time Decay 116 | . 116 Lost Part 80 | . 80 Squads Dispatched 2 | . 2 Investigation 1 | . 1 Extermination . | . . Reinforcement 1 | . 1 Assault . | . . Garrison . | . . Intercept . | . . Searches Triggered . | . . Construction Impeded . | . . Haulers Reinforced . | . . Active Scanning Responses . | . . Cargo Convoy Interrupts . | . . Stealth | -11 -10 --------- Run | Yrd Mat Distress Signals 3 | . 3 Communications Jammed . | . . Distress Signals . | . . Times Spotted 26 | . 26 Peak Tracking Total 8 | . 8 Tactical Retreats 2 | . 2 Traps | -11 -10 ------- Run | Yrd Mat Traps Triggered 1 | . 1 Indirectly . | . . Trap Hack Attempts . | . . Triggered . | . . Disarmed . | . . Reprogrammed . | . . Reused . | . . Traps Extracted . | . . Installed . | . . Triggered . | . . Machines | -11 -10 ---------- Run | Yrd Mat Machines Disabled . | . . Max in Single Turn . | . . Machines Repaired . | . . Machines Dismantled . | . . Machines Sabotaged . | . . Overloaded Fab Kills . | . . Hacking | -11 -10 --------- Run | Yrd Mat Machines Accessed 1 | . 1 Terminals 1 | . 1 Fabricators . | . . Repair Stations . | . . Recycling Units . | . . Scanalyzers . | . . Garrison Access . | . . Total Hacks 4 | . 4 Successful 2 | . 2 Failed 1 | . 1 Catastrophic . | . . Database Lockouts 1 | . 1 Manual 4 | . 4 Terminals 4 | . 4 Fabricators . | . . Repair Stations . | . . Recycling Units . | . . Scanalyzers . | . . Garrison Access . | . . Terminal Hacks 2 | . 2 Robot Analysis 2 | . 2 Fabricator Hacks . | . . Repair Station Hacks . | . . Recycling Unit Hacks . | . . Scanalyzer . | . . Garrison Access Hacks . | . . Unauthorized Hacks . | . . Terminals . | . . Fabricators . | . . Repair Stations . | . . Recycling Units . | . . Scanalyzers . | . . Garrison Access . | . . Data Cores Recovered . | . . Used . | . . Hacking Detections 1 | . 1 Full Trace Events . | . . Feedback Events . | . . Feedback Blocked . | . . Robot Schematics Acquired . | . . Robots Built . | . . Authchips . | . . Time . | . . Total Robot Build Rating . | . . Part Schematics Acquired . | . . Parts Built . | . . Authchips . | . . Time . | . . Total Part Build Rating . | . . Part Studies Acquired . | . . Parts Repaired . | . . Time . | . . Parts Recycled . | . . Recycled Matter . | . . Retrieved Matter . | . . Retrieved Components . | . . Parts Scanalyzed . | . . Part Schematics Acquired . | . . Parts Damaged . | . . Bothacking | -11 -10 ------------ Run | Yrd Mat Used RIF Installer . | . . Robots Hacked . | . . Non-combat . | . . Combat . | . . Robot Hacks Applied . | . . Relay Couplers Released . | . . Fabnet Peak Effective % . | . . Robots Rewired . | . . Allies Hacked . | . . Hacks Repelled . | . . Allies | -11 -10 -------- Run | Yrd Mat Total Allies . | . . Largest Group . | . . Highest-Rated Group . | . . Highest-Rated Ally . | . . Total Orders . | . . Ally Attacks . | . . Total Damage . | . . Kills . | . . Allies Corrupted . | . . Allies Melted . | . . Intel | -11 -10 ------- Run | Yrd Mat Active Infowar (turns) . | . . Robot Analysis Total 2 | . 2 Derelict Logs Recovered . | . . Drone Launches . | . . Drone Recoveries . | . . Exploration | -11 -10 ------------- Run | Yrd Mat Turns Passed 370 | 42 328 Spaces Moved 199 | 35 164 Core 1 | 1 . Treads 26 | . 26 Legs . | . . Wheels 172 | 34 138 Hover . | . . Flight . | . . Fastest Speed 50 | 50 80 Average Speed 98 | 79 102 Slowest Speed 240 | 80 240 Overloaded Moves . | . . Propulsion Burnouts . | . . Robots Hopped . | . . Potential Cave-ins . | . . Cave-ins Triggered . | . . Exploration Rate (%) 21 | 3 40 Regions Visited 1 Branch Regions . Pre-discovered Areas . | . . Known Exits Taken . | . . Unknown Exits Taken 1 | 1 . Scrap Searched . | . . Spaces Dug . | . . Terrain Destroyed . | . . Melee . | . . Projectile . | . . AOE . | . . Terrain Rammed . | . . Walls Destroyed . | . . Machines Disabled . | . . Actions | -11 -10 --------- Run | Yrd Mat Total 281 | 46 235 Wait 3 | . 3 Move 198 | 34 164 Hop . | . . Pick Up 9 | 4 5 Fast Attach 8 | 6 2 Attach 6 | 1 5 Detach 1 | 1 . Swap 1 | . 1 Drop 1 | . 1 Fire 54 | . 54 Melee . | . . Ram . | . . Kick . | . . Crush . | . . Escape Stasis . | . . Rewire . | . . Trap . | . . Miscellaneous . | . . Route ------- -11/Scrapyard -10/Materials (discovered 2 exits: [*Mat] / [*Min]) History --------- Turn | Location | Event 29 | -11/Scrapyard | Discovered new exit (range 16) 43 | -11/Scrapyard | Entered Materials 61 | -10/Materials | Discovered new exit (range 15) 118 | -10/Materials | Central database locked down 208 | -10/Materials | Core integrity fell below 50% 227 | -10/Materials | Discovered new exit (range 16) 308 | -10/Materials | Build established: Mutant 365 | -10/Materials | Core integrity fell below 20% 371 | -10/Materials | Destroyed by S-10 Pest with Light Assault Rifle Last Messages --------------- 00349_ K-01 Serf collects debris. 00351_ K-01 Serf suffers critical hit (Burn). 00351_ Lgt. Ion Engine melted. 00351_ K-01 Serf destroyed. 00351_ K-01 Serf collects debris. 00355_ Lgt. Ion Engine destroyed. 00355_ K-01 Serf collects debris. 00358_ K-01 Serf cleans the Matter Pump. 00359_ S-10 Pest destroyed. 00359_ Switching to secondary target: G-34 Mercenary. 00359_ K-01 Serf collects debris. 00363_ Med. Laser destroyed. 00363_ K-01 Serf collects debris. 00365_ M-13 Machinist repairs K-01 Serf. 00366_ K-01 Serf collects debris. 00367_ Heat Sink destroyed. 00368_ K-01 Serf destroyed. 00369_ Lgt. Assault Rifle destroyed. 00371_ K-01 Serf collects debris. Map ----- +----------------------------------------------------+ | ???????????????????### ##???# ####?????????????? | | ???????????????????# ???# ???????????? | | ???????????????????# ???# ???????????? | | ???????????????????# ???# ????????????? | | ???????????????????# ???# ######????????# | | ???????????????????? ???# # #????????# | | ????????????????????# #???# # =#????????# | | ????????????????????# #???# # #????????# | | ????????????????????# #???# # #????????# | | ????????????????????#% =##### + #????????# | | ????????????????????# % # #????????# | | ??????????????????### [* # #????????# | | ??????????????????#"" """ # #????????# | | ??????????????????#"" """ # #????????# | | ??????????????????#"T """ ###+##????????# | | ??????????????????#"" # =[#????????# | | ??????????????????#"" %+% #????????+ | | ??????????????????### g """ # == #????????# | | ????????????????????# g""" # #????????# | | ????????????????????# """ # #?######## | | ????????????????????# # ### | | ???????????????????## # + | | ???????????????????#" !! """ # ### | | ???????????????????#T !! [""" # #?## ######## | | ???????????????????#" !![!""" ######??# #??????? | | ???????????????????## @!m #???????# #??????? | | ????????????????????# =%%=k #???????# #????### | | ???????????????????# ||%s% ######### ##### | | ???????????????????# ||= # | | ???????????????????# || + " | | ???????????????????# ######### # " | | ???????????????????# g ######### # " | | ???????????????????## #"T"#### g # # # | | ????????????????????# #####???a # " """ # # | | ????????????????????# ????????? # T """ # #### | | ????????????????????# ?????????? # " """ + #??? | | ????????????????????# ???????????# # #??? | | ????????????????????+ ???????????######### ##?? | | ????????????????????# ???????????????????# ### | | ????????????????????? ???????????????????# | | ??????????????????????????????????????????# | | ??????????????????????????????????????????# | | ??????????????????????????????????????######### | | ??????????????????????????????? | | ??????????????????????????????????????######### ## | | ?????????????????????????????????????????##! ## #? | | ?????????????????????????????????????????#! ## ## | | ?????????????????????????????????????????#! # | | ?????????????????????????????????????????# " + | | ?????????????????????????????????????????#! # | +----------------------------------------------------+ Best States ------------- Heat Dissipation 35 Energy Generation 10 Energy Capacity 125 Matter Stores 266 Matter Capacity 300 Sight Range 16 Terrain Scan Density 10 Evasion (%) 44 Recoil Reduction 2 Item Schematics ----------------- None Robot Schematics ------------------ None Fabricated ------------ Nothing Repaired ---------- Nothing Studied --------- None Alien Tech Used ----------------- None Achievements -------------- None Challenges ------------ None Game ------ Seed FocalDynamicClaws Manual? 0 Play Time 00:04:56 Cumulative 213.6 hours Start 2026.08.10 @ 01:54:51 End 2026.08.10 @ 03:34:43 Sessions 2 Manual Loads 0 Difficulty Rogue Special Mode None Game No. 221 Rogue 167 Adventurer 54 Explorer 0 Win Type - Total 9 Types 5/0/1/1/0/0/0/1/0/1 Lore% 72 Gallery% 61 Achievement% 57 Wizard Run 0 Options --------- Layout 1 ASCII 0 Keyboard 0 Movement Mouse Keybinds 1 Fullscreen 2 Font 32/Tamsyn Map View 50x35 Zoom Use 0% Tactical HUD 1 Map Filters NONE Filters NONE Steam 1 RUN: 68912a96-6cc9-4751-a851-240a5bc97f4b